[Event "Rohde op 12th"]
[Site "Sautron"]
[Date "2012.10.28"]
[Round "2"]
[White "Bedouin, Xavier"]
[Black "Gleizerov, Evgeny"]
[Result "0-1"]
[ECO "C06"]
[WhiteElo "2414"]
[BlackElo "2564"]
[Annotator "Primel,D"]
[PlyCount "122"]
[EventDate "2012.10.27"]
[EventType "swiss"]
[EventRounds "9"]
[EventCountry "FRA"]
[SourceTitle "EXT 2014"]
[Source "ChessBase"]
[SourceDate "2013.11.20"]
[SourceVersion "1"]
[SourceVersionDate "2013.11.20"]
[SourceQuality "1"]
[TimeControl "40/5400+30:1800+30"]
[WhiteClock "1:30:00"]
[BlackClock "1:30:00"]

1. e4 {[%emt 0:01:47]} e6 {[%emt 0:00:00]} 2. d4 {[%emt 0:00:14]} d5 {[%emt 0:
00:00]} 3. Nd2 {[%emt 0:00:11]} Nf6 {[%emt 0:00:00]} 4. e5 {[%emt 0:00:15]}
Nfd7 {[%emt 0:00:00]} 5. c3 {[%emt 0:00:10]} c5 {[%emt 0:00:03]} 6. Bd3 {
[%emt 0:00:20]} Nc6 {[%emt 0:00:05]} 7. Ne2 {[%emt 0:00:15]} cxd4 {[%emt 0:00:
07]} 8. cxd4 {[%emt 0:00:09]} f6 {[%emt 0:00:04]} 9. exf6 {[%emt 0:00:41]} Qxf6
{[%emt 0:00:06]} (9... Nxf6 {La grande ligne} 10. Nf3 Bd6 11. O-O O-O (11...
Qc7) 12. Bf4 {Nikolenko,O (2475)-Gleizerov,E (2520) POL-chT Lubniewice 1994 (8)
1/2}) 10. Nf3 {[%emt 0:00:54]} h6 {[%emt 0:00:08]} 11. O-O {[%emt 0:00:52]} Bd6
{[%emt 0:00:05]} 12. Ng3 {[%emt 0:00:45]} O-O {[%emt 0:00:06]} 13. Bc2 {
[%emt 0:01:53]} Rf7 {[%emt 0:00:46]} 14. Nh5 {[%emt 0:02:16]} Qd8 {[%emt 0:00:
22]} 15. Bg6 {[%emt 0:00:42]} Re7 {[%emt 0:00:07]} 16. Bf4 {[%emt 0:00:53]} Nf8
{[%emt 0:00:08]} 17. Bc2 {[%emt 0:01:58]} Rf7 {[%emt 0:00:19]} 18. Qd2 {
[%emt 0:01:26]} Bxf4 {[%emt 0:00:11]} 19. Nxf4 {[%emt 0:00:08]} Qd6 {[%emt 0:
00:15] Le GMI a joué l'ouverture а tempo et il disposait а ce moment de 07
minutes de plus qu'au début de la partie!} 20. Ne2 {[%emt 0:01:22]} Bd7 {
[%emt 0:02:20]} 21. Rad1 {[%emt 0:01:41]} ({RR} 21. Rfe1 Rc8 22. Rac1 Be8 23.
Ba4 Ng6 24. Bxc6 Bxc6 25. Ne5 Nxe5 26. dxe5 Qxe5 27. Nd4 Qf4 28. Qxf4 Rxf4 29.
Nxe6 Rb4 30. b3 Re8 31. f3 a5 32. Kf2 a4 33. Nc5 axb3 34. Rxe8+ Bxe8 35. Nxb3
d4 {Korneev,O (2584)-Lugovskoy,M (2376)/Belorechensk 2012/Mega2012 Update 25/1/
2-1/2 (58)}) 21... Be8 {[%emt 0:01:43]} 22. Qe3 {[%emt 0:05:44] Probablement
le 01er coup hors préparation du français qui était également trés bien
préparé!} Rc7 $146 {[%emt 0:03:42][%cal Ga8c8,Gc7e7]} (22... Nb4 23. Bb1 Bb5
24. Rfe1 Bxe2 25. Rxe2 Rc7 26. Ne5 Nc6 27. Nd3 Nb4 28. Nf4 Rac8 29. g3 Nc6 30.
Qd2 Nd8 31. h4 Qb6 32. Kg2 Rc4 33. Qe3 Qc7 34. Ree1 Qf7 35. Bd3 R4c7 36. Re2
Qf6 37. Nh5 {Sermek,D (2545)-Dimitrov,V (2464)/Pardubice 1999/EXT 2000/1/2-1/2
(60)}) 23. Nc3 {[%emt 0:33:48]} a6 {[%emt 0:04:49]} 24. Rfe1 {[%emt 0:01:43]}
Rac8 {[%emt 0:10:28]} (24... Re7 $5 25. Ne5 $14 {[%csl Gc2,Re8]}) 25. Bb1 {
[%emt 0:07:17]} Bh5 $11 {[%emt 0:11:15] Le mauvais B s'est activé et la
faiblesse "e6" est facile а protéger} 26. Rd2 {[%emt 0:05:20]} b5 {[%emt 0:07:
54]} 27. h3 $6 {[%emt 0:06:41] Trop lent et le GMI va prendre l'initiative} (
27. Ne5 $142 Na5 28. f4 Nc4 29. Nxc4 Rxc4 30. Bd3 R4c7 31. Rf2 b4 32. Na4 {
[%cal Ga4c5]} Re8 33. Nc5 $16 {[%csl Gc5,Re6]}) 27... Na5 $1 {[%emt 0:03:56]
[%csl Gc4]} 28. Ne5 {[%emt 0:00:40]} Nc4 $1 {[%emt 0:04:47]} 29. Nxc4 {[%emt 0:
00:16]} Rxc4 {[%emt 0:00:06]} 30. Bd3 {[%emt 0:07:24]} R4c6 {[%emt 0:00:53]}
31. a4 {[%emt 0:02:00]} b4 {[%emt 0:04:41]} 32. Ne2 {[%emt 0:00:09]} Bf7 {
[%emt 0:04:51]} 33. Rdd1 {[%emt 0:05:19]} b3 $5 {[%emt 0:09:17][%csl Rd4][%cal
Gd6b4,Gb4a4]} 34. Nc3 {[%emt 0:07:42]} Bg6 $1 {[%emt 0:04:57][%csl Gb3,Rc2]
Echange non seulement le mauvais B mais les Blancs auront maintenant du mal а
contrôler la case "c2"} 35. g3 {[%emt 0:02:58]} Qb4 {[%emt 0:03:16]} 36. Qe2 {
[%emt 0:00:28]} Bxd3 {[%emt 0:01:17]} 37. Rxd3 $138 {[%emt 0:00:02] Joué а
tempo mais Qd3 était une autre option valable pour éviter le clouage au coup
suivant} (37. Qxd3 $5) 37... Qc4 $1 $15 {[%emt 0:05:34]} 38. Qd2 {[%emt 0:00:
41][%csl Rd2,Rd3] Les pièces Noires commecent а être un peu plus actives} Ng6
$5 {[%emt 0:01:46][%csl Rd4][%cal Gg6e7,Ge7f5]} 39. Qd1 {[%emt 0:01:24]} Ne7 {
[%emt 0:03:33]} (39... Re8 40. Rde3) 40. Rde3 $1 $132 {[%emt 0:00:00][%csl Re6]
} Nf5 {[%emt 0:00:00]} 41. Rxe6 {[%emt 0:01:45]} Rxe6 {[%emt 0:06:04]} 42. Rxe6
{[%emt 0:00:04]} Nxd4 {[%emt 0:00:11]} 43. Re5 {[%emt 0:05:55][%csl Rd5]} Rd8 {
[%emt 0:08:15]} 44. Qh5 $6 {[%emt 0:05:07]} (44. Kg2 $5 {[%csl Rf3,Rf7,Rg8]
[%cal Gd1h5,Ge5e7] Libère la Q Blanche de la surveillance de la case "f3" en
évitant un échec intermédiaire} Nc2 45. Nxd5 (45. Qh5 d4 46. Nd5 Rxd5 $1 47.
Rxd5 Qc6 {[%csl Rg2][%cal Gc2b4]}) 45... Ne1+ $1 46. Qxe1 Rxd5 47. Re4 {
Malgré le P de plus, les chances de gain des Blancs sont assez minces}) 44...
Qd3 {[%emt 0:07:13]} 45. Rxd5 {[%emt 0:14:42]} (45. Re7 $5 {[%cal Gh5f7]} Qf3
46. Qe5 $36 {[%cal Ge5g7]}) 45... Nf3+ $1 {[%emt 0:04:53]} 46. Qxf3 {[%emt 0:
00:09]} Qxf3 {[%emt 0:00:06]} 47. Rxd8+ {[%emt 0:00:06]} Kh7 {[%emt 0:00:40]}
48. h4 $6 {[%emt 0:02:48]} (48. Rd2 $11 {[%cal Gd2e2,Ge2d2,Gg1h2] Si les
Blancs veulent annuler c'est peut-être une meilleure contruction de forteresse
en évitant d'affaiblir la case "g4". Les blancs se contentent ensuite de
répéter les coups par Rd2de2d2 ou Kh2g1 et les Noirs ont des difficultés а
progresser. Au surplus, répéter les coups sans prendre de prise de risques
permet aussi de gagner du temps avec l'incrément.} Qf5 49. Kh2 g5 50. Kg2)
48... Qf5 {[%emt 0:05:43]} 49. Rd2 {[%emt 0:00:30]} Qe5 {[%emt 0:00:22]} 50.
Kg2 {[%emt 0:00:48]} (50. Kh2) 50... Qe6 {[%emt 0:01:04]} 51. Re2 {[%emt 0:00:
22]} Qc6+ {[%emt 0:00:11]} 52. Kg1 $11 {[%emt 0:00:34]} Kg6 {[%emt 0:00:09]}
53. Kh2 {[%emt 0:00:29]} Kf5 {[%emt 0:00:15]} 54. Rd2 {[%emt 0:00:12]} g5 {
[%emt 0:01:27]} 55. hxg5 {[%emt 0:00:10]} hxg5 {[%emt 0:00:17]} 56. Rd5+ {
[%emt 0:00:40]} Kg6 {[%emt 0:01:54]} 57. Rd2 {[%emt 0:03:09]} Kh5 $1 {[%emt 0:
00:18][%csl Gg4] Illustrant le problème d'avoir poussé h4 auparavant} 58. Re2 {
[%emt 0:00:22]} Kg4 $15 {[%emt 0:02:02] Les Noirs ont un peu progressé et il
est difficile de parer Kf3} 59. Rd2 {[%emt 0:01:11]} Kf3 {[%emt 0:04:08][%csl
Rh2][%cal Gc6h6]} 60. Kg1 {[%emt 0:00:12]} Qc4 {[%emt 0:02:26]} 61. Re2 $4 {
[%emt 0:00:14]} (61. Kh2 $2 Qf1) (61. Rd5 $1 {[%cal Gd5d2]}) 61... Qxc3 {
[%emt 0:01:05]} 0-1

[Event "Rohde op 12th"]
[Site "Sautron"]
[Date "2012.10.29"]
[Round "4"]
[White "Oleksienko, Mikhailo"]
[Black "Gleizerov, Evgeny"]
[Result "1-0"]
[ECO "C06"]
[WhiteElo "2539"]
[BlackElo "2564"]
[Annotator "Primel,D"]
[PlyCount "133"]
[EventDate "2012.10.27"]
[EventType "swiss"]
[EventRounds "9"]
[EventCountry "FRA"]
[SourceTitle "EXT 2014"]
[Source "ChessBase"]
[SourceDate "2013.11.20"]
[SourceVersion "1"]
[SourceVersionDate "2013.11.20"]
[SourceQuality "1"]
[TimeControl "40/5400+30:1800+30"]
[WhiteClock "1:30:00"]
[BlackClock "1:30:00"]

1. e4 {[%emt 0:00:00]} e6 {[%emt 0:00:00]} 2. d4 {[%emt 0:00:00]} d5 {[%emt 0:
00:00]} 3. Nd2 {[%emt 0:00:00]} Nf6 {[%emt 0:00:00]} 4. e5 {[%emt 0:00:00]}
Nfd7 {[%emt 0:00:03]} 5. Bd3 {[%emt 0:00:10]} c5 {[%emt 0:00:05]} 6. c3 {
[%emt 0:00:02]} Nc6 {[%emt 0:00:07]} 7. Ne2 {[%emt 0:00:07]} cxd4 {[%emt 0:00:
06]} 8. cxd4 {[%emt 0:00:02]} f6 {[%emt 0:00:08]} 9. exf6 {[%emt 0:00:05]} Qxf6
{[%emt 0:00:15]} 10. Nf3 {[%emt 0:00:36]} h6 {[%emt 0:00:07]} 11. O-O {[%emt 0:
00:45]} Bd6 {[%emt 0:00:04]} 12. Ng3 {[%emt 0:00:24]} O-O {[%emt 0:00:07]} 13.
Bc2 {[%emt 0:00:28]} Rf7 {[%emt 0:00:06]} (13... Rd8 {La grande ligne} 14. Re1
Nf8 15. Ne5 Bd7 (15... Qh4 16. f4) 16. f4 $14 {Vokarev,S (2485)-Gleizerov,E 
(2545) RUS-Cup Krasnodar 1998 (8) 1-0}) 14. Nh5 {[%emt 0:00:16]} Qd8 {[%emt 0:
00:08]} ({RR} 14... Qe7 15. Re1 Nf8 16. Ng3) 15. Bg6 {[%emt 0:00:12]} Re7 {
[%emt 0:00:05]} (15... Rf8 16. Re1 Nf6 17. Ne5 (17. Nf4 $5) 17... Qc7 $132 {
Burnoiu,N (2435)-Badev,K (2314) Bucharest U20 2008 (4) 0-1}) 16. Bf4 $1 {
[%emt 0:00:13][%csl Rc8]} Nf8 {[%emt 0:00:07][%cal Gf8g6,Gf8e6]} 17. Bc2 {
[%emt 0:00:09]} ({RR} 17. Bd3 Bxf4 18. Nxf4 Qd6 19. Qd2 Rf7 20. Ne2 Bd7 21. Qe3
Be8 22. Ne5) 17... Rf7 {[%emt 0:00:09]} 18. Bg3 $5 {[%emt 0:00:37] Les deux
adversaires ont blitzé l'ouverture et ils avaient а ce moment 05 minutes de
plus qu'au début de la partie} (18. Qd2 Bxf4 19. Nxf4 Qd6 20. Ne2 Bd7 21. Qe3
Be8 22. Rad1 Nb4 23. Bb1 Bb5 24. Rfe1 Bxe2 25. Rxe2 Rc7) (18. Bxd6 Qxd6 {
la partie va donner une position quasi similaire mais avec la Qe7 au lieu de
la case "d6" qui est peu plus active} 19. Re1 Bd7 20. Ne5 Nxe5 21. Rxe5 Rc8 22.
Qd2 Be8 $11 {Petenyi,T (2347)-Smolen,J (2377) SVK-chT2A 1112 2011 (6.1) 1/2})
18... g6 {[%emt 0:19:08] La position reste théorique mais les Noirs se sont
lancés dans une longue réflexion.} 19. Bh4 {[%emt 0:01:10]} Be7 {[%emt 0:06:07]
} (19... g5 $6 20. Bg3 $16) 20. Bxe7 {[%emt 0:00:12]} Qxe7 {[%emt 0:00:06]} 21.
Ng3 {[%emt 0:00:05]} Bd7 $146 {[%emt 0:03:56]} ({RR} 21... e5 22. Nxe5 ({RR} 
22. Bb3 e4 23. Ne5 Nxe5 24. dxe5 Be6 25. Bxd5 Rd8 26. Bxe6 Rxd1 27. Bxf7+ Kxf7
28. Raxd1) 22... Nxe5 23. dxe5 Qxe5 24. Bb3 Be6 25. Qd2 Qf4 26. Qd3 Qf6 27.
Rae1 a5 28. f4 a4 29. Bc2 Qxb2 ({RR} 29... Rc8) ({RR} 29... Ra6) 30. f5 gxf5
31. Nxf5 Bxf5 32. Rxf5 Rxf5 33. Qxf5 Qd4+ 34. Kh1 Rd8 ({RR} 34... Qg7) 35. Re7
Qa1+ ({RR} 35... b5 36. Qf7+ Kh8 37. h3 Qb2 38. Qf4) ({RR} 35... Qb2 36. Qf1
Rc8 37. h3) 36. Bb1 {Timofeev,A (2577)-Zaja,I (2417)/Istanbul 2003/CBM 096/
[Mueller,Karsten]/1-0 (40)} {RR} Qb2 37. h4 Qd4 38. g3) 22. Qd2 {[%emt 0:09:18]
Fin de la préparation des Blancs!} Kg7 {[%emt 0:13:13]} 23. Qe3 {[%emt 0:03:41]
} (23. Rae1) 23... Qf6 {[%emt 0:11:17]} 24. Ne2 {[%emt 0:01:58]} Be8 {[%emt 0:
04:47][%csl Re8] Les Noirs n'ont pas résolu le problème du mauvais B et la
poussée g6 empêche de le recycler en h5 mais la position Noire est solide} 25.
Rac1 {[%emt 0:07:53]} a6 {[%emt 0:05:46]} 26. Bb1 $14 {[%emt 0:07:49][%csl Rg6]
[%cal Ge3d3,Gf3h4]} Nd7 {[%emt 0:05:38]} 27. Rfe1 {[%emt 0:02:53]} (27. Qd3)
27... g5 {[%emt 0:14:14][%csl Rh7]} 28. Ne5 $1 {[%emt 0:21:01] Transposant
dans une finale favorable} (28. Ng3 $5 {[%csl Rf6,Rg7][%cal Gg3h5]}) 28...
Ndxe5 {[%emt 0:01:48]} 29. dxe5 {[%emt 0:02:23]} Qxe5 {[%emt 0:05:19]} 30.
Qxe5+ {[%emt 0:00:42]} Nxe5 {[%emt 0:00:05]} 31. Ng3 {[%emt 0:00:11][%csl Re5,
Re6]} Ng4 {[%emt 0:00:52]} (31... Nc6 $142 32. Rxe6 Rf6 33. Nf5+ Kf7 34. Rd6
Rxd6 35. Nxd6+ Kf6 36. Nxb7 Rb8 37. Nd6 Bd7 38. b3 a5 {[%cal Ga5a4]} 39. Kf1 a4
) 32. Rxe6 $16 {[%emt 0:03:38]} Rf6 {[%emt 0:04:06]} 33. Re7+ {[%emt 0:10:10]}
Rf7 {[%emt 0:01:52]} 34. Re6 {[%emt 0:04:24]} (34. Rcc7 $142 Rxe7 35. Rxe7+ Kf6
36. Rxb7 Rc8 {[%csl Rg1]}) 34... Rf6 {[%emt 0:00:02]} 35. Nf5+ {[%emt 0:01:23]}
Kf8 {[%emt 0:00:40]} 36. Rxf6+ {[%emt 0:00:22]} Nxf6 {[%emt 0:00:02]} 37. Nxh6
$16 {[%emt 0:00:10][%csl Rd5,Rg5]} d4 {[%emt 0:00:41]} (37... Rd8) 38. Nf5 {
[%emt 0:01:07]} Rd8 {[%emt 0:00:08]} 39. Rd1 {[%emt 0:00:27]} Bg6 {[%emt 0:00:
15]} 40. Nxd4 $1 {[%emt 0:00:00]} Rxd4 {[%emt 0:00:00]} (40... Bxb1 41. Ne6+)
41. Rxd4 {[%emt 0:02:11]} Bxb1 {[%emt 0:00:21]} 42. a3 {[%emt 0:00:31]} g4 {
[%emt 0:04:03]} 43. Rf4 {[%emt 0:00:28]} Ke7 {[%emt 0:00:07]} 44. f3 {[%emt 0:
00:16][%csl Gg2,Gh2] Les Blancs ont des bonnes chances de gain avec la
majorité éloignée} gxf3 {[%emt 0:00:05]} 45. Rxf3 $36 {[%emt 0:00:02]} Be4 {
[%emt 0:00:09]} 46. Rf2 {[%emt 0:01:35]} (46. Re3) 46... Ke6 {[%emt 0:00:10]}
47. h3 {[%emt 0:00:03]} Ke5 {[%emt 0:00:09]} (47... Kf7 $143 48. Rf4 Kg6 49.
Kf2 Kg5 50. g3 $40 {[%cal Gh3h4]}) 48. Kh2 {[%emt 0:00:37]} (48. g4) 48... Nd5
$6 {[%emt 0:00:14]} (48... a5 $142 49. g4 b5 50. Kg3 b4 51. axb4 axb4 52. h4)
49. g4 {[%emt 0:00:42]} a5 {[%emt 0:01:43]} 50. Kg3 {[%emt 0:00:52]} b5 {
[%emt 0:00:05]} 51. h4 $40 {[%emt 0:00:09][%csl Gg4,Gh4] Le K Noir est coupé
et les pièces mineures sont assez passives} b4 {[%emt 0:00:05]} 52. axb4 {
[%emt 0:00:11]} axb4 {[%emt 0:00:06]} 53. h5 {[%emt 0:00:43]} b3 {[%emt 0:00:
35]} 54. g5 {[%emt 0:00:48]} Ne7 {[%emt 0:00:17]} 55. g6 {[%emt 0:07:01]
Prématuré} (55. Rf7) (55. Re2 $142 $1 {[%csl Re4,Re5][%cal Ge2e5,Gg5g6]} Kf5
56. g6 Nxg6 57. Rxe4) 55... Nxg6 {[%emt 0:01:17]} 56. hxg6 {[%emt 0:00:11]}
Bxg6 {[%emt 0:00:02]} 57. Rf3 {[%emt 0:01:03]} Bc2 {[%emt 0:00:08]} 58. Rc3 $1
{[%emt 0:00:08] Le K Noir est coupé de l'aile-dame} Kd4 {[%emt 0:00:30]} 59.
Kf2 {[%emt 0:01:19]} Bd1 {[%emt 0:01:33]} 60. Ke1 {[%emt 0:00:34]} Bc2 {
[%emt 0:00:07]} 61. Kd2 {[%emt 0:00:01]} Kd5 {[%emt 0:00:17]} 62. Ke3 {[%emt 0:
00:07]} Ke5 {[%emt 0:00:18]} 63. Rc5+ {[%emt 0:00:37]} Kd6 {[%emt 0:01:39]} 64.
Kd4 {[%emt 0:00:02]} Bd1 {[%emt 0:00:07]} 65. Kc4 {[%emt 0:00:11]} Bg4 {
[%emt 0:01:12]} (65... Bc2 66. Kb4 Bd1 67. Rc4 {[%cal Gc4d4]} Bc2) 66. Kb4 {
[%emt 0:00:09]} Be6 {[%emt 0:00:07]} 67. Rc3 {[%emt 0:00:03][%cal Gc3b3]} 1-0